bitfinex-derivatives/quotes_BTCF0:USTF0_20240817
["timestamp","ask_amount","ask_price","bid_price","bid_amount"]
[1723855139448,0.62677227,58949.0,58948.0,0.001]
[1723855140152,0.62677227,58949.0,58945.0,0.084797]
[1723855140353,0.58066992,58946.0,58945.0,0.084797]
[1723855140548,1.01744219,58946.0,58945.0,0.084797]
[1723855140744,0.79757227,58946.0,58945.0,0.084797]
[1723855140946,0.79757227,58946.0,58945.0,0.234797]
[1723855141757,0.79757227,58946.0,58945.0,0.235797]
[1723855141948,0.43677227,58946.0,58945.0,0.235797]
[1723855142149,0.79757227,58946.0,58945.0,0.27312633]
[1723855142552,0.79957227,58946.0,58945.0,0.235797]
[1723855142857,1.01944219,58946.0,58945.0,0.236797]
[1723855143351,1.02044219,58946.0,58945.0,0.27412615]
[1723855143558,0.80057227,58946.0,58945.0,0.27412615]
[1723855144652,0.43977227,58946.0,58945.0,0.27412615]
[1723855144865,0.80057227,58946.0,58945.0,0.27412615]
[1723855145350,0.5438,58946.0,58945.0,0.27412615]
[1723855146643,0.5438,58946.0,58945.0,0.236797]
[1723855146855,0.5438,58946.0,58945.0,0.27412369]
[1723855150258,0.5438,58946.0,58945.0,0.27412611]
[1723855150455,0.183,58946.0,58945.0,0.27412611]
[1723855150658,0.5438,58946.0,58945.0,0.27412611]
[1723855151559,0.5438,58946.0,58945.0,0.236797]
[1723855153059,0.183,58946.0,58945.0,0.236797]
[1723855153263,0.5438,58946.0,58945.0,0.236797]
[1723855154754,0.628596,58946.0,58945.0,0.002]
[1723855155949,0.745896,58946.0,58945.0,0.002]
[1723855158956,1.106696,58946.0,58945.0,0.002]
[1723855159166,1.23571839,58946.0,58945.0,0.002]
[1723855160161,1.03362239,58946.0,58945.0,0.204098]
[1723855160363,1.00612959,58946.0,58945.0,0.24142794]
[1723855160564,0.9046,58946.0,58945.0,0.24142794]
[1723855162066,0.5438,58946.0,58945.0,0.24142794]
[1723855162763,0.5438,58946.0,58945.0,0.24142714]
[1723855163062,0.5438,58946.0,58945.0,0.42003592]
[1723855163264,0.5438,58946.0,58945.0,0.48450655]
[1723855163665,0.183,58946.0,58945.0,0.48450655]
[1723855164263,0.42818165,58946.0,58945.0,0.46608488]
[1723855165062,0.42818165,58946.0,58945.0,0.46708488]
[1723855165470,0.42818165,58946.0,58945.0,0.46808488]
[1723855165862,0.42818165,58946.0,58945.0,0.64388488]
[1723855166059,0.42818165,58946.0,58945.0,0.54208511]
[1723855166362,0.42818165,58946.0,58945.0,0.6438753]
[1723855166568,0.42818165,58946.0,58945.0,0.54208511]
[1723855167668,0.183,58946.0,58945.0,0.54208511]
[1723855168562,0.185,58946.0,58945.0,0.54208511]
[1723855168766,0.183,58946.0,58945.0,0.54108511]
[1723855168968,0.187,58946.0,58945.0,0.54208511]
[1723855170260,0.186,58946.0,58945.0,0.54208511]
[1723855170563,0.14667708,58946.0,58945.0,0.54208511]
[1723855174567,0.14667708,58946.0,58945.0,0.64387634]
[1723855174771,0.14667708,58946.0,58945.0,0.54208511]
[1723855174976,0.14667708,58946.0,58945.0,0.64387634]
[1723855175380,0.006,58946.0,58945.0,0.64387634]
[1723855175567,0.26004306,58946.0,58945.0,0.64387634]
[1723855176970,0.10774431,58946.0,58945.0,0.64387634]
[1723855177168,0.006,58946.0,58945.0,0.64387634]
[1723855177376,0.10774981,58946.0,58945.0,0.64387634]
[1723855178173,0.10774981,58946.0,58945.0,0.35077634]
[1723855178977,0.10774981,58946.0,58945.0,0.35077992]
[1723855181587,0.10774981,58946.0,58945.0,0.28630987]
[1723855181879,0.10774763,58946.0,58945.0,0.28630987]
[1723855182686,0.006,58946.0,58945.0,0.24898511]
[1723855183286,0.006,58946.0,58945.0,0.37082085]
[1723855183471,0.006,58946.0,58945.0,0.50001351]
[1723855183671,0.006,58946.0,58945.0,0.37082085]
[1723855183875,0.006,58946.0,58945.0,0.2863095]
[1723855184381,0.006,58946.0,58945.0,0.37082085]
[1723855184884,0.006,58946.0,58945.0,0.50001363]
[1723855185085,0.006,58946.0,58945.0,0.37082085]
[1723855185287,0.006,58946.0,58945.0,0.50001418]
[1723855185487,0.006,58946.0,58945.0,0.46268979]
[1723855185692,0.006,58946.0,58945.0,0.41550266]
[1723855185992,0.006,58946.0,58945.0,0.49992985]
[1723855186176,0.006,58946.0,58945.0,0.46260563]
[1723855186380,0.006,58946.0,58945.0,0.49993017]
[1723855186587,0.006,58946.0,58945.0,0.41550298]
[1723855187081,0.006,58946.0,58945.0,0.77630298]
[1723855187884,0.006,58946.0,58945.0,0.89350298]
[1723855189478,0.006,58946.0,58945.0,0.9949166]
[1723855189678,0.006,58946.0,58945.0,1.05938531]
[1723855190787,0.006,58946.0,58945.0,0.28630965]
[1723855190788,0.126,58946.0,58945.0,0.28630965]
[1723855191178,0.126,58946.0,58945.0,0.24898511]
[1723855191179,0.21059554,58946.0,58945.0,0.24898511]
[1723855191488,0.21059554,58946.0,58945.0,0.28631342]
[1723855192092,0.126,58946.0,58945.0,0.28631342]
[1723855192277,0.006,58946.0,58945.0,0.28631342]
[1723855192479,0.006,58946.0,58945.0,0.41842421]
[1723855192686,0.006,58946.0,58945.0,0.41844788]
[1723855193188,0.006,58946.0,58945.0,0.41844833]
[1723855193382,0.006,58946.0,58945.0,0.35078477]
[1723855195187,0.006,58946.0,58945.0,0.35077953]
[1723855195892,0.006,58946.0,58945.0,0.46798071]
[1723855196795,0.07378421,58946.0,58945.0,0.46798071]
[1723855197088,0.006,58946.0,58945.0,0.46798071]
[1723855197683,0.16548467,58946.0,58945.0,0.46798071]
[1723855199192,0.16548467,58946.0,58945.0,0.46797699]
[1723855199492,0.10775,58946.0,58945.0,0.46797699]
[1723855199688,0.16548467,58946.0,58945.0,0.46797699]
[1723855199885,0.10775,58946.0,58945.0,0.46797699]
[1723855200191,0.16548467,58946.0,58945.0,0.46797699]
[1723855200492,0.10775,58946.0,58945.0,0.46797699]
[1723855201980,0.10775,58946.0,58945.0,0.36618511]
[1723855202179,0.10775,58946.0,58945.0,0.46797594]
[1723855202390,0.10775,58946.0,58945.0,0.82877594]
[1723855202590,0.16548467,58946.0,58945.0,0.82877594]
[1723855202790,0.10775,58946.0,58945.0,0.82877594]
[1723855203085,0.16548467,58946.0,58945.0,0.82877594]
[1723855203286,0.10775,58946.0,58945.0,0.82877594]
[1723855203586,0.16548467,58946.0,58945.0,0.82877594]
[1723855203783,0.10775,58946.0,58945.0,0.46797594]
[1723855203987,0.10775,58946.0,58945.0,0.82877594]
[1723855203988,0.16548467,58946.0,58945.0,0.82877594]
[1723855204190,0.10775,58946.0,58945.0,0.82877594]
[1723855204390,0.16548467,58946.0,58945.0,0.82877594]
[1723855205689,0.006,58946.0,58945.0,0.95796549]
[1723855206196,0.006,58946.0,58945.0,0.9579655]
[1723855206394,0.006,58946.0,58945.0,1.11309576]
[1723855206597,0.006,58946.0,58945.0,1.01130492]
[1723855206796,0.006,58946.0,58945.0,1.11309576]
[1723855207393,0.41164838,58954.0,58953.0,0.084786]
[1723855207592,0.81164838,58954.0,58953.0,0.33657684]
[1723855208491,0.81164838,58954.0,58953.0,0.33757684]
[1723855208793,0.81464838,58954.0,58953.0,0.33857684]
[1723855209000,0.81664838,58954.0,58953.0,0.33857684]
[1723855209494,0.45584838,58954.0,58953.0,0.33857684]
[1723855209697,0.81664838,58954.0,58953.0,0.33857684]
[1723855209901,0.7658,58954.0,58953.0,0.33857684]
[1723855210199,0.7658,58954.0,58953.0,0.33857555]
[1723855211597,0.405,58954.0,58953.0,0.33857555]
[1723855211793,0.405,58954.0,58953.0,0.236786]
[1723855211997,0.405,58954.0,58953.0,0.24990656]
[1723855212797,0.43248579,58954.0,58953.0,0.24990656]
[1723855213393,0.43248579,58954.0,58953.0,0.28722849]
[1723855214099,0.405,58954.0,58953.0,0.28722849]
[1723855214298,0.405,58954.0,58953.0,0.24990656]
[1723855214604,0.48971626,58954.0,58953.0,0.28722692]
[1723855214903,0.48971626,58954.0,58953.0,0.28722666]
[1723855215706,0.405,58954.0,58953.0,0.28722666]
[1723855216222,0.48969568,58954.0,58953.0,0.28722666]
[1723855216598,0.405,58954.0,58953.0,0.24990656]
[1723855216906,0.48969402,58954.0,58953.0,0.24990656]
[1723855217201,0.48969396,58954.0,58953.0,0.24990656]
[1723855217403,0.48969396,58954.0,58953.0,0.28722654]
[1723855218297,0.48969396,58954.0,58953.0,0.24990656]
[1723855219003,0.405,58954.0,58953.0,0.24990656]
[1723855219906,0.405,58954.0,58953.0,0.35169073]
[1723855220412,0.43248437,58954.0,58953.0,0.35169073]
[1723855220794,0.50674092,58954.0,58953.0,0.35169073]
[1723855226313,0.50674133,58954.0,58953.0,0.35169163]
[1723855227515,0.00025459,58959.0,58958.0,0.084779]
[1723855227811,0.00025459,58959.0,58958.0,1.16643008]
[1723855228020,0.15254514,58965.0,58964.0,0.20197]
[1723855228210,0.15254514,58965.0,58964.0,1.10833152]
[1723855228409,0.15254514,58965.0,58964.0,1.65434074]
[1723855228611,0.03437433,58984.0,58964.0,1.55847083]
[1723855228807,0.0458,58986.0,58982.0,0.20156816]
[1723855229013,0.0961,58990.0,58986.0,0.084738]
[1723855229207,0.09635434,58990.0,58989.0,0.1172]
[1723855229521,0.09635434,58990.0,58989.0,0.15452119]
[1723855230315,0.09635434,58990.0,58989.0,0.1172]
[1723855231007,0.09635434,58990.0,58989.0,0.1182]
[1723855231619,0.09635434,58990.0,58989.0,0.1192]
[1723855232212,0.09635434,58990.0,58989.0,0.002]
[1723855233321,0.21355434,58990.0,58989.0,0.002]
[1723855233919,0.09635434,58990.0,58989.0,0.002]
[1723855234115,0.60491434,58990.0,58989.0,0.002]
[1723855237612,0.78491434,58990.0,58989.0,0.002]
[1723855238123,0.78491434,58990.0,58989.0,0.086734]
[1723855238916,0.27635434,58990.0,58989.0,0.086734]
[1723855240407,0.27635434,58990.0,58989.0,0.10005819]
[1723855243525,0.18025434,58990.0,58989.0,0.24005819]
[1723855250618,0.18025434,58990.0,58989.0,0.23905819]
[1723855250814,0.18025434,58990.0,58989.0,0.24005819]
[1723855251233,0.18025434,58990.0,58989.0,0.29054192]
[1723855251527,0.18025434,58990.0,58989.0,0.24005819]
[1723855253228,0.18025434,58990.0,58989.0,0.3074264]
[1723855254030,0.18025434,58990.0,58989.0,0.4246264]
[1723855254224,0.18025434,58990.0,58989.0,0.35725819]
[1723855255637,0.18025434,58990.0,58989.0,0.57072315]
[1723855256231,0.18025434,58990.0,58989.0,0.45352315]
[1723855256528,0.00025434,58990.0,58989.0,0.67133079]
[1723855256733,0.3608,59004.0,59003.0,0.084714]
[1723855256925,0.3608,59004.0,59003.0,0.201914]
[1723855257322,0.3608,59004.0,59003.0,0.26938239]
[1723855257732,0.3608,59004.0,59003.0,0.201914]
[1723855257931,0.3608,59004.0,59003.0,0.202914]
[1723855258238,0.3608,59004.0,59003.0,0.085714]
[1723855258431,0.3608,59004.0,59003.0,0.001]
[1723855258640,0.3708,59004.0,59003.0,0.001]
[1723855258929,0.3708,59004.0,59003.0,0.002]
[1723855258930,0.655513,59004.0,59003.0,0.002]
[1723855259133,0.08472,58999.0,58998.0,0.00025434]
[1723855259326,0.478,58999.0,58998.0,0.00025434]
[1723855260327,0.56272,58999.0,58998.0,0.00125434]
[1723855260529,1.21866815,58999.0,58998.0,0.001]
[1723855261246,0.71018815,58999.0,58998.0,0.001]
[1723855261635,0.50826815,58999.0,58998.0,0.1182]
[1723855261837,0.4808,58999.0,58998.0,0.202921]
[1723855262327,0.3608,58999.0,58998.0,0.372921]
[1723855262523,0.06762441,59000.0,58998.0,0.2882]
[1723855262727,0.06762441,59001.0,59000.0,0.084719]
[1723855262926,0.06762441,59002.0,59001.0,0.084717]
[1723855263130,0.06762441,59002.0,59001.0,0.201917]
[1723855263533,0.3608,59004.0,59002.0,0.084716]
[1723855263735,0.3608,59004.0,59003.0,0.084714]
[1723855265635,0.084714,59003.0,59002.0,0.001]
[1723855265840,0.99564,59003.0,59002.0,0.001]
[1723855266137,0.4872,59003.0,59002.0,0.001]
[1723855266338,0.99564,59003.0,59000.0,0.05060294]
[1723855266635,0.571914,59003.0,59000.0,0.05060294]
[1723855266840,0.0494,59002.0,59000.0,0.05060294]
[1723855267133,0.0694,59002.0,59000.0,0.05060294]
[1723855267532,0.0694,59002.0,59000.0,0.05160294]
[1723855267834,0.0694,59002.0,59001.0,0.05060294]
[1723855268541,0.02,59002.0,59001.0,0.05060294]
[1723855268930,0.02,59002.0,59001.0,0.13531994]
[1723855269234,0.02,59002.0,59001.0,0.13631994]
[1723855269939,0.02,59002.0,59001.0,0.085717]
[1723855270941,0.02,59002.0,59001.0,0.086717]
[1723855271137,0.3808,59002.0,59001.0,0.086717]
[1723855273340,0.3808,59002.0,59001.0,0.12401171]
[1723855273542,0.3808,59002.0,59001.0,0.28401171]
[1723855277243,0.3808,59002.0,59001.0,0.3514801]
[1723855278247,0.3808,59002.0,59001.0,0.28401171]
[1723855278735,0.3808,59002.0,59001.0,0.086717]
[1723855279132,0.427,59002.0,59001.0,0.086717]
[1723855279541,0.427,59002.0,59001.0,0.29401273]
[1723855279748,0.427,59002.0,59001.0,0.36157166]
[1723855279945,0.3808,59002.0,59001.0,0.36157166]
[1723855280243,0.3808,59002.0,59001.0,0.29401273]
[1723855281046,0.55958876,59002.0,59001.0,0.29401273]
[1723855283339,0.48246997,59002.0,59001.0,0.29401273]
[1723855283753,0.48246971,59002.0,59001.0,0.29401273]
[1723855284153,0.48246971,59002.0,59001.0,0.12401273]
[1723855284552,0.63494368,59002.0,59001.0,0.086717]
[1723855284849,0.63494368,59002.0,59001.0,0.002]
[1723855286146,0.48246971,59002.0,59001.0,0.002]
[1723855286341,0.48246971,59002.0,59001.0,0.03929636]
[1723855286744,0.56718571,59002.0,59001.0,0.03929636]
[1723855286943,0.56718571,59002.0,59001.0,0.002]
[1723855287849,0.56718571,59002.0,58996.0,0.01332909]
[1723855287850,0.084717,59001.0,59000.0,0.05069039]
[1723855288045,0.621817,59001.0,59000.0,0.05069039]
[1723855288246,0.084719,59000.0,58999.0,0.05069039]
[1723855288440,0.084721,58999.0,58997.0,0.06758719]
[1723855288641,0.06774237,58998.0,58997.0,0.06758719]
[1723855288842,0.39,58998.0,58997.0,0.084723]
[1723855289354,0.39,58998.0,58997.0,0.201923]
[1723855289551,0.39,58998.0,58997.0,0.202923]
[1723855290256,0.39,58998.0,58997.0,0.59368477]
[1723855290455,0.39,58998.0,58997.0,0.55638783]
[1723855290749,0.39,58998.0,58997.0,0.50931492]
[1723855290946,0.39,58998.0,58997.0,0.51031492]
[1723855291147,0.39,58998.0,58997.0,0.50931492]
[1723855291352,0.391,58998.0,58997.0,0.51031492]
[1723855293052,0.391,58998.0,58997.0,0.39311492]
[1723855293952,0.391,58998.0,58997.0,0.39311464]
[1723855294153,0.391,58998.0,58997.0,0.45753502]
[1723855294765,0.5082,58998.0,58997.0,0.32843939]
[1723855295059,0.5082,58998.0,58997.0,0.12401901]
[1723855295965,0.45119165,58998.0,58997.0,0.12401901]
[1723855296756,0.45119165,58998.0,58997.0,0.18844149]
[1723855297250,0.45119008,58998.0,58997.0,0.18844149]
[1723855297860,0.81199008,58998.0,58997.0,0.18844149]
[1723855299164,0.81198981,58998.0,58997.0,0.18844149]
[1723855300157,0.77926665,58998.0,58997.0,0.18844149]
[1723855300364,0.41846665,58998.0,58997.0,0.18844149]
[1723855300563,0.77926665,58998.0,58997.0,0.18844149]
[1723855300757,0.5200853,58998.0,58997.0,0.33844149]
[1723855301268,0.41846665,58998.0,58997.0,0.33844149]
[1723855301759,0.41846665,58998.0,58997.0,0.236723]
[1723855301960,0.41846665,58998.0,58997.0,0.33843449]
[1723855302362,0.41846665,58998.0,58997.0,0.236723]
[1723855302663,0.41846665,58998.0,58997.0,0.33843307]
[1723855302854,0.41846665,58998.0,58997.0,0.46752163]
[1723855302855,0.391,58998.0,58997.0,0.46752163]
[1723855304667,0.7518,58998.0,58997.0,0.46752163]
[1723855305062,0.7518,58998.0,58997.0,0.5519828]
[1723855306567,0.7518,58998.0,58997.0,0.55198788]
[1723855306763,0.391,58998.0,58997.0,0.55198788]
[1723855306972,0.7518,58998.0,58997.0,0.55198788]
[1723855309055,0.391,58998.0,58997.0,0.55198788]
[1723855309260,0.7518,58998.0,58997.0,0.55198788]
[1723855309972,0.7518,58998.0,58997.0,0.45027781]
[1723855310158,0.7518,58998.0,58997.0,0.55199304]
[1723855310366,0.7518,58998.0,58997.0,0.4228994]
[1723855310565,0.7518,58998.0,58997.0,0.55199299]
[1723855310971,0.77926624,58998.0,58997.0,0.33843823]
[1723855313468,0.45874328,58998.0,58997.0,0.50771091]
[1723855314068,0.45874328,58998.0,58997.0,0.50769242]
[1723855314669,0.45874328,58998.0,58997.0,0.50768373]
[1723855314972,0.45874328,58998.0,58997.0,0.40601103]
[1723855316170,0.391,58998.0,58997.0,0.33843102]
[1723855316563,0.391,58998.0,58997.0,0.43493102]
[1723855316964,0.391,58998.0,58997.0,0.48043102]
[1723855317869,0.391,58998.0,58997.0,0.72671545]
[1723855318063,0.391,58998.0,58997.0,0.72671548]
[1723855318775,0.33167035,58998.0,58997.0,0.98543732]
[1723855318969,0.001,58998.0,58997.0,0.72671548]
[1723855319172,0.3608,59003.0,59002.0,0.084716]
[1723855319377,0.3608,59003.0,59002.0,0.38920895]
[1723855320271,0.5708,59003.0,59002.0,0.38920895]
[1723855320474,0.5708,59003.0,59002.0,0.27300895]
[1723855321176,0.5708,59003.0,59002.0,0.27400868]
[1723855323172,0.5708,59003.0,59002.0,0.28702946]
[1723855324172,0.5708,59003.0,59002.0,0.3514442]
[1723855324680,0.5708,59003.0,59002.0,0.35144418]
[1723855325876,0.21,59003.0,59002.0,0.35144418]
[1723855326466,0.21,59003.0,59002.0,0.35144417]
[1723855328879,0.21,59003.0,59002.0,0.35144413]
[1723855329380,0.21,59003.0,59002.0,0.28702947]
[1723855329880,0.21,59003.0,59002.0,0.35144381]
[1723855331282,0.21,59003.0,59002.0,0.28702947]
[1723855331976,0.3272,59003.0,59002.0,0.35144298]
[1723855332175,0.3272,59003.0,59002.0,0.28702947]
[1723855332379,0.3272,59003.0,59002.0,0.20231347]
[1723855333087,0.38738323,59003.0,59002.0,0.20231347]
[1723855336295,0.38738316,59003.0,59002.0,0.20231347]
[1723855336878,0.38738316,59003.0,59002.0,0.26672763]
[1723855336879,0.50594287,59003.0,59002.0,0.26672763]
[1723855337380,0.42886315,59003.0,59002.0,0.20231329]
[1723855337882,0.56435996,59003.0,59002.0,0.20231329]
[1723855338084,0.42886315,59003.0,59002.0,0.20231329]
[1723855339181,0.56435996,59003.0,59002.0,0.16502078]
[1723855339882,0.50593277,59003.0,59002.0,0.16502078]
[1723855340085,0.50593277,59003.0,59002.0,0.20231474]
[1723855340777,0.50593277,59003.0,59002.0,0.16502078]
[1723855340973,0.3272,59003.0,59002.0,0.05231471]
[1723855341189,0.3272,59003.0,59002.0,0.01502078]
[1723855341886,0.3272,59003.0,59002.0,0.05231485]
[1723855344182,0.21,59003.0,59002.0,0.13703085]
[1723855344389,0.21,59003.0,59002.0,0.25423085]
[1723855344987,0.21,59003.0,59002.0,0.25423047]
[1723855345785,0.21,59003.0,59002.0,0.52331571]
[1723855345976,0.64476171,59009.0,59002.0,0.52331571]
[1723855345977,0.00025434,59009.0,59008.0,0.084707]
[1723855346289,0.00025434,59009.0,59008.0,0.9819256]
[1723855346290,0.00121435,59009.0,59008.0,0.9819256]
[1723855346479,0.00025434,59009.0,59008.0,1.0304256]
[1723855346676,0.00025434,59009.0,59008.0,2.20177851]
[1723855346986,0.00025434,59009.0,59008.0,2.43903669]
[1723855347186,0.00025434,59009.0,59008.0,2.54151877]
[1723855347491,0.00025434,59009.0,59008.0,2.3243878]
[1723855348073,0.02770823,59009.0,59008.0,2.09382048]
[1723855348282,0.02770823,59009.0,59008.0,2.09182048]
[1723855348483,0.02770823,59009.0,59008.0,2.09382048]
[1723855348984,0.02770823,59009.0,59008.0,2.0938194]
[1723855349387,0.02770823,59009.0,59008.0,1.99214874]
[1723855349587,0.02770823,59009.0,59008.0,2.09382052]
[1723855350091,0.02770823,59009.0,59008.0,2.10664779]
[1723855350478,0.02770823,59009.0,59008.0,2.10564779]
[1723855350678,0.02770823,59009.0,59008.0,2.10664779]
[1723855350879,0.02770872,59009.0,59008.0,2.10664779]
[1723855351301,0.11854959,59021.0,59008.0,1.93723379]
[1723855351485,7.8e-07,59011.0,59009.0,0.36638378]
[1723855351692,0.02745365,59010.0,59009.0,0.775512]
[1723855351990,0.02745365,59010.0,59009.0,1.2771819]
[1723855352190,0.02745365,59010.0,59009.0,1.7855819]
[1723855352880,0.02745365,59010.0,59009.0,1.683912]
[1723855353081,0.02745365,59014.0,59013.0,0.0847]
[1723855353280,0.02745326,59014.0,59013.0,0.36886905]
[1723855353488,0.02745326,59014.0,59013.0,1.47390729]
[1723855354290,0.02745326,59014.0,59013.0,1.45693824]
[1723855354677,0.02745326,59014.0,59013.0,1.49521662]
[1723855354882,0.02745326,59014.0,59013.0,1.29953838]
[1723855355076,0.02745326,59014.0,59013.0,1.26226]
[1723855355486,0.00025434,59015.0,59014.0,0.084699]
[1723855355686,0.02770745,59015.0,59014.0,0.615499]
[1723855355883,0.02770745,59015.0,59014.0,1.123859]
[1723855356088,0.00025434,59015.0,59014.0,1.123859]
[1723855356678,0.00025434,59015.0,59014.0,1.124859]
[1723855356882,0.00025434,59015.0,59014.0,1.125859]
[1723855358380,0.00025434,59015.0,59014.0,1.53844872]
[1723855359290,0.3608,59026.0,59025.0,0.084683]
[1723855359482,0.3708,59026.0,59025.0,0.371883]
[1723855360478,0.3708,59026.0,59025.0,0.373883]
[1723855360995,0.3708,59026.0,59025.0,0.372883]
[1723855361295,0.3708,59026.0,59025.0,0.373883]
[1723855363785,0.01,59026.0,59025.0,0.256683]
[1723855364086,0.01,59026.0,59025.0,0.26952662]
[1723855368096,0.1272,59026.0,59025.0,0.18484362]
[1723855368296,0.01,59026.0,59025.0,0.18484362]
[1723855368485,0.01,59026.0,59025.0,0.26952662]
[1723855369089,0.01,59026.0,59025.0,0.18484362]
[1723855369293,0.0594,59026.0,59025.0,0.18484362]
[1723855369706,0.144081,59026.0,59025.0,0.18484362]
[1723855370201,0.0594,59026.0,59025.0,0.18484362]
[1723855371002,0.0594,59026.0,59025.0,0.13263926]
[1723855371003,0.17008079,59026.0,59025.0,0.13263926]
[1723855372299,0.68335476,59026.0,59025.0,0.13263926]
[1723855372598,0.23811068,59026.0,59025.0,0.13263926]
[1723855372798,0.68277687,59026.0,59025.0,0.13263926]
[1723855373204,0.59891068,59026.0,59025.0,0.13263926]
[1723855373895,0.23811068,59026.0,59025.0,0.13263926]
[1723855374095,0.53088079,59026.0,59025.0,0.13263926]
[1723855374296,0.59891068,59026.0,59025.0,0.13263926]
[1723855374499,0.70037539,59026.0,59025.0,0.13263926]
[1723855374700,0.76840528,59026.0,59025.0,0.13263926]
[1723855375100,0.76840528,59026.0,59025.0,0.24983926]
[1723855375293,0.53088079,59026.0,59025.0,0.24983926]
[1723855375499,0.53088079,59026.0,59025.0,0.33452226]
[1723855376903,0.53088079,59026.0,59025.0,0.21732226]
[1723855377208,0.78505359,59026.0,59025.0,0.21732226]
[1723855377704,0.59891068,59026.0,59025.0,0.16832211]
[1723855378100,0.4202,59026.0,59025.0,0.21865383]
[1723855378699,0.4202,59026.0,59025.0,0.16832211]
[1723855379599,0.4202,59026.0,59025.0,0.21887807]
[1723855379908,0.4202,59026.0,59025.0,0.28552211]
[1723855381315,0.4202,59026.0,59025.0,0.21888106]
[1723855382300,0.4202,59026.0,59025.0,0.16832211]
[1723855382701,0.3708,59026.0,59025.0,0.16832211]
[1723855382901,0.3708,59026.0,59025.0,0.28552211]
[1723855383409,0.43850986,59026.0,59025.0,0.28552211]
[1723855384005,0.07770986,59026.0,59025.0,0.28552211]
[1723855384311,0.43850986,59026.0,59025.0,0.28552211]
[1723855384509,0.43850986,59026.0,59025.0,0.35263108]
[1723855384710,0.3708,59026.0,59025.0,0.35263108]
[1723855385105,0.01,59026.0,59025.0,0.35263108]
[1723855385305,0.43850986,59026.0,59025.0,0.32279954]
[1723855386211,0.47974719,59026.0,59025.0,0.32279954]
[1723855388919,0.47974719,59026.0,59025.0,0.32279936]
[1723855389813,0.63208514,59026.0,59025.0,0.32279936]
[1723855390318,0.47974719,59026.0,59025.0,0.32279936]
[1723855390726,0.00016826,59031.0,59025.0,1.73258455]
[1723855391022,0.07745587,59027.0,59026.0,0.10166155]
[1723855391208,0.07745587,59027.0,59026.0,0.84219432]
[1723855391209,0.18840801,59027.0,59026.0,0.84219432]
[1723855391408,0.11095214,59027.0,59026.0,1.93688446]
[1723855392720,0.11095214,59027.0,59026.0,1.93788446]
[1723855392912,0.11095214,59027.0,59026.0,1.87350016]
[1723855393113,0.15228497,59028.0,59027.0,0.08468]
[1723855393319,0.15228497,59028.0,59027.0,0.77738665]
[1723855393515,0.15228497,59028.0,59027.0,1.40078741]
[1723855393720,0.15228497,59028.0,59027.0,0.35411965]
[1723855393910,0.26948497,59028.0,59027.0,0.06727089]
[1723855394112,0.15228497,59028.0,59026.0,0.15395089]
[1723855394307,0.15228497,59028.0,59026.0,0.27015089]
[1723855394513,0.15328497,59028.0,59027.0,0.15295089]
[1723855394820,0.15428497,59028.0,59027.0,0.24668]
[1723855395118,0.15428497,59028.0,59027.0,0.79162646]
[1723855395424,0.15428497,59028.0,59027.0,0.87468898]
[1723855395617,0.15428497,59028.0,59027.0,0.79062646]
[1723855395823,0.15428497,59028.0,59027.0,0.78962646]
[1723855396125,0.15428497,59028.0,59027.0,0.87368594]
[1723855396336,0.15428497,59028.0,59027.0,0.78962571]
[1723855396920,0.16228497,59028.0,59027.0,0.79062265]
[1723855397311,0.17528497,59028.0,59027.0,0.79162265]
[1723855397513,0.17528497,59028.0,59027.0,0.79162324]
[1723855397909,0.17528497,59028.0,59027.0,0.87567096]
[1723855398110,0.17528497,59028.0,59027.0,0.62533988]
[1723855399422,0.17528497,59028.0,59027.0,0.72699406]
[1723855399822,0.17528497,59028.0,59027.0,0.36619406]
[1723855400925,0.023,59028.0,59027.0,0.36619406]
[1723855401114,0.2183174,59028.0,59027.0,0.36619406]
[1723855401916,0.24181125,59028.0,59027.0,0.0392732]
[1723855403321,0.12461125,59028.0,59027.0,0.0392732]
[1723855403719,0.12461125,59028.0,59027.0,0.05713678]
[1723855404027,0.12461367,59028.0,59027.0,0.22713664]
[1723855404728,0.12461367,59028.0,59027.0,0.34433664]
[1723855404729,0.08315388,59028.0,59027.0,0.34433664]
[1723855404938,0.08315388,59028.0,59027.0,0.42901664]
[1723855405123,0.08315388,59028.0,59027.0,0.42901688]
[1723855407126,0.08315388,59028.0,59027.0,0.42901741]
[1723855407428,0.44395388,59028.0,59027.0,0.18986302]
[1723855407731,0.64583188,59028.0,59027.0,0.18986302]
[1723855407920,0.60261653,59028.0,59027.0,0.18986302]
[1723855408119,0.501,59028.0,59027.0,0.18986302]
[1723855408918,0.55169338,59028.0,59027.0,0.25717075]
[1723855409121,0.57169338,59028.0,59027.0,0.25717075]
[1723855409531,0.084687,59022.0,59020.0,0.00025412]
[1723855409729,0.3608,59021.0,59020.0,0.15025412]
[1723855410217,0.3608,59021.0,59020.0,0.21758176]
[1723855410619,0.3608,59021.0,59020.0,0.21858176]
[1723855410820,0.3608,59021.0,59020.0,0.15125412]
[1723855411021,0.3688,59021.0,59020.0,0.15225412]
[1723855411633,0.3778,59021.0,59020.0,0.15225412]
[1723855411833,0.3778,59021.0,59020.0,0.30427176]
[1723855412026,0.3778,59021.0,59020.0,0.23694412]
[1723855412529,0.017,59021.0,59020.0,0.23694412]
[1723855414429,0.017,59021.0,59020.0,0.33861251]
[1723855414724,0.017,59021.0,59020.0,0.27422281]
[1723855416238,0.017,59021.0,59020.0,0.33861284]
[1723855416436,0.017,59021.0,59020.0,0.27422281]
[1723855417632,0.017,59021.0,59020.0,0.27422338]
[1723855420644,0.017,59021.0,59020.0,0.34148677]
[1723855420840,0.247,59021.0,59020.0,0.18953338]
[1723855421035,0.247,59021.0,59020.0,0.03953338]
[1723855421351,0.247,59021.0,59020.0,0.08998759]
[1723855421530,0.331688,59021.0,59020.0,0.00225412]
[1723855422437,1.239968,59021.0,59020.0,0.00225412]
[1723855422849,1.30755917,59021.0,59020.0,0.00225412]
[1723855423143,0.084697,59016.0,59011.0,0.084702]
[1723855423343,0.52980448,59012.0,59011.0,0.254702]
[1723855423544,0.6414561,59012.0,59011.0,0.29198959]
[1723855423934,0.6414561,59012.0,59011.0,0.12198959]
[1723855424135,0.6414561,59012.0,59011.0,0.084702]
[1723855424633,0.52559478,59012.0,59011.0,0.0974276]
[1723855425032,0.52759478,59012.0,59011.0,0.0974276]
[1723855425438,0.67959411,59012.0,59011.0,0.0974276]